[Event "Titled Tuesday Blitz March 01 Late 2022"]
[White "Johnson, Donald"]
[Black "Nasuta, Grzegorz"]
[WhiteFideId "30949122"]
[BlackFideId "1141686"]
[WhiteElo "1724"]
[BlackElo "2396"]
[Result "0-1"]
[Round "03"]
[TimeControl "180+1"]
[Date "2022.03.02"]
[WhiteClock "0:00:01"]
[BlackClock "0:00:48"]

1. e4 {[%clk 0:03:00]}  c5 {[%clk 0:03:00]} 2. Nf3 {[%clk 0:03:00]}  e6 {[%clk 0:03:00]} 3. d4 {[%clk 0:03:01]}  cxd4 {[%clk 0:03:01]} 4. Nxd4 {[%clk 0:03:01]}  Nf6 {[%clk 0:02:59]} 5. Nc3 {[%clk 0:03:01]}  d6 {[%clk 0:02:59]} 6. g4 {[%clk 0:03:00]}  h6 {[%clk 0:02:57]} 7. Rg1 {[%clk 0:02:59]}  Nc6 {[%clk 0:02:56]} 8. h4 {[%clk 0:02:58]}  Qb6 {[%clk 0:02:54]} 9. Be3 {[%clk 0:02:52]}  Qxb2 {[%clk 0:02:45]} 10. Ndb5 {[%clk 0:02:29]}  Qb4 {[%clk 0:02:36]} 11. Bd2 {[%clk 0:02:19]}  Kd8 {[%clk 0:02:27]} 12. Bd3 {[%clk 0:01:52]}  Ne5 {[%clk 0:01:40]} 13. Rb1 {[%clk 0:01:21]}  Qc5 {[%clk 0:01:40]} 14. Be3 {[%clk 0:01:12]}  Qc6 {[%clk 0:01:40]} 15. Bxa7 {[%clk 0:01:05]}  Rxa7 {[%clk 0:01:40]} 16. Nxa7 {[%clk 0:01:02]}  Qxc3+ {[%clk 0:01:40]} 17. Kf1 {[%clk 0:00:55]}  Be7 {[%clk 0:01:23]} 18. f4 {[%clk 0:00:40]}  Nc4 {[%clk 0:01:11]} 19. Bxc4 {[%clk 0:00:28]}  Qxc4+ {[%clk 0:01:11]} 20. Qd3 {[%clk 0:00:28]}  Qxe4 {[%clk 0:01:07]} 21. Nxc8 {[%clk 0:00:21]}  Qxf4+ {[%clk 0:01:01]} 22. Ke1 {[%clk 0:00:17]}  Kxc8 {[%clk 0:01:00]} 23. Qc3+ {[%clk 0:00:16]}  Kb8 {[%clk 0:01:00]} 24. Qb3 {[%clk 0:00:15]}  Qe4+ {[%clk 0:00:58]} 25. Kd1 {[%clk 0:00:15]}  Qd5+ {[%clk 0:00:58]} 26. Qxd5 {[%clk 0:00:15]}  Nxd5 {[%clk 0:00:58]} 27. Rb3 {[%clk 0:00:14]}  Bxh4 {[%clk 0:00:57]} 28. Ke2 {[%clk 0:00:13]}  Rc8 {[%clk 0:00:56]} 29. Kd2 {[%clk 0:00:06]}  Bg5+ {[%clk 0:00:56]} 30. Kd3 {[%clk 0:00:06]}  Nf4+ {[%clk 0:00:55]} 31. Ke4 {[%clk 0:00:05]}  Rc4+ {[%clk 0:00:53]} 32. Kf3 {[%clk 0:00:05]}  Rxc2 {[%clk 0:00:54]} 33. Rgb1 {[%clk 0:00:05]}  Rc7 {[%clk 0:00:54]} 34. R3b2 {[%clk 0:00:03]}  Nd5 {[%clk 0:00:52]} 35. Rb3 {[%clk 0:00:03]}  Nc3 {[%clk 0:00:50]} 36. R1b2 {[%clk 0:00:03]}  d5 {[%clk 0:00:49]} 37. Rc2 {[%clk 0:00:04]}  d4 {[%clk 0:00:49]} 38. a3 {[%clk 0:00:04]}  e5 {[%clk 0:00:49]} 39. Kf2 {[%clk 0:00:03]}  e4 {[%clk 0:00:49]} 40. Rb4 {[%clk 0:00:03]}  Nd1+ {[%clk 0:00:50]} 41. Ke1 {[%clk 0:00:02]}  Rxc2 {[%clk 0:00:51]} 42. Rxd4 {[%clk 0:00:02]}  Nc3 {[%clk 0:00:49]} 43. Kf1 {[%clk 0:00:01]}  e3 {[%clk 0:00:48]} 44. Rc4 {[%clk 0:00:01]}  e2+ {[%clk 0:00:48]} 45. Ke1 {[%clk 0:00:01]}  Bh4# {[%clk 0:00:48]} 0-1


[Site "https://www.chess.com"]

[Event "Titled Tuesday Blitz March 01 Late 2022"]
[White "Kamsky, Gata"]
[Black "Zubritskiy, Artyom"]
[WhiteFideId "2000024"]
[BlackFideId "4181247"]
[WhiteElo "2645"]
[BlackElo "2459"]
[Result "0-1"]
[Round "03"]
[TimeControl "180+1"]
[Date "2022.03.01"]
[WhiteClock "0:00:04"]
[BlackClock "0:01:07"]

1. e4 {[%clk 0:02:58]}  c5 {[%clk 0:02:59]} 2. Nf3 {[%clk 0:02:56]}  Nf6 {[%clk 0:03:00]} 3. e5 {[%clk 0:02:53]}  Nd5 {[%clk 0:03:00]} 4. g3 {[%clk 0:02:49]}  d6 {[%clk 0:02:59]} 5. Bg2 {[%clk 0:02:46]}  Nc6 {[%clk 0:02:59]} 6. exd6 {[%clk 0:02:43]}  Qxd6 {[%clk 0:02:49]} 7. d4 {[%clk 0:02:26]}  Bg4 {[%clk 0:02:40]} 8. c4 {[%clk 0:01:59]}  Ndb4 {[%clk 0:02:28]} 9. d5 {[%clk 0:01:53]}  Nd4 {[%clk 0:02:26]} 10. Na3 {[%clk 0:01:46]}  Qf6 {[%clk 0:02:11]} 11. Bf4 {[%clk 0:00:47]}  g5 {[%clk 0:02:09]} 12. O-O {[%clk 0:00:26]}  gxf4 {[%clk 0:02:09]} 13. Nb5 {[%clk 0:00:26]}  Nxb5 {[%clk 0:01:50]} 14. cxb5 {[%clk 0:00:25]}  Rd8 {[%clk 0:01:47]} 15. Qa4 {[%clk 0:00:24]}  Nxd5 {[%clk 0:01:47]} 16. b6+ {[%clk 0:00:23]}  Bd7 {[%clk 0:01:45]} 17. Qe4 {[%clk 0:00:20]}  Nxb6 {[%clk 0:01:34]} 18. Ne5 {[%clk 0:00:19]}  Bg7 {[%clk 0:01:31]} 19. gxf4 {[%clk 0:00:16]}  O-O {[%clk 0:01:28]} 20. Rfe1 {[%clk 0:00:14]}  Bc8 {[%clk 0:01:17]} 21. a4 {[%clk 0:00:13]}  Nd5 {[%clk 0:01:15]} 22. Nd3 {[%clk 0:00:07]}  Bf5 {[%clk 0:01:11]} 23. Qf3 {[%clk 0:00:05]}  Bxd3 {[%clk 0:01:10]} 24. Qxd3 {[%clk 0:00:05]}  Nxf4 {[%clk 0:01:11]} 25. Qf3 {[%clk 0:00:05]}  Qg5 {[%clk 0:01:08]} 26. Kh1 {[%clk 0:00:04]}  Qxg2+ {[%clk 0:01:07]} 27. Qxg2 {[%clk 0:00:04]}  Nxg2 {[%clk 0:01:08]} 28. Kxg2 {[%clk 0:00:05]}  Rd7 {[%clk 0:01:08]} 29. Rab1 {[%clk 0:00:05]}  b6 {[%clk 0:01:08]} 30. b3 {[%clk 0:00:05]}  Rfd8 {[%clk 0:01:08]} 31. Re3 {[%clk 0:00:05]}  e6 {[%clk 0:01:07]} 32. Rbe1 {[%clk 0:00:04]}  Rd3 {[%clk 0:01:07]} 0-1


[Site "https://www.chess.com"]

[Event "Titled Tuesday Blitz March 01 Late 2022"]
[White "Kanyamarala, Tarun"]
[Black "Riazantsev, Alexander"]
[WhiteFideId "45004714"]
[BlackFideId "4125029"]
[WhiteElo "2144"]
[BlackElo "2595"]
[Result "1/2-1/2"]
[Round "03"]
[TimeControl "180+1"]
[Date "2022.03.01"]
[WhiteClock "0:00:07"]
[BlackClock "0:00:30"]

1. d4 {[%clk 0:03:00]}  d5 {[%clk 0:02:59]} 2. c4 {[%clk 0:03:01]}  c6 {[%clk 0:02:59]} 3. Nf3 {[%clk 0:03:00]}  Nf6 {[%clk 0:02:58]} 4. Qb3 {[%clk 0:03:00]}  dxc4 {[%clk 0:02:56]} 5. Qxc4 {[%clk 0:03:01]}  Bf5 {[%clk 0:02:56]} 6. g3 {[%clk 0:03:01]}  e6 {[%clk 0:02:53]} 7. Bg2 {[%clk 0:03:02]}  Be7 {[%clk 0:02:51]} 8. O-O {[%clk 0:03:01]}  O-O {[%clk 0:02:49]} 9. Rd1 {[%clk 0:03:02]}  Nbd7 {[%clk 0:02:48]} 10. e3 {[%clk 0:03:02]}  h6 {[%clk 0:02:40]} 11. Qe2 {[%clk 0:03:02]}  Rc8 {[%clk 0:02:36]} 12. Nc3 {[%clk 0:03:01]}  Ne4 {[%clk 0:02:36]} 13. Ne1 {[%clk 0:02:59]}  Nxc3 {[%clk 0:02:32]} 14. bxc3 {[%clk 0:02:58]}  b5 {[%clk 0:02:32]} 15. a4 {[%clk 0:02:53]}  a6 {[%clk 0:02:29]} 16. c4 {[%clk 0:02:41]}  bxc4 {[%clk 0:02:06]} 17. Qxc4 {[%clk 0:02:39]}  a5 {[%clk 0:02:06]} 18. Nd3 {[%clk 0:02:21]}  Nb6 {[%clk 0:01:56]} 19. Qb3 {[%clk 0:02:08]}  Bxd3 {[%clk 0:01:54]} 20. Rxd3 {[%clk 0:02:00]}  Nd5 {[%clk 0:01:54]} 21. Bd2 {[%clk 0:01:59]}  Nb4 {[%clk 0:01:52]} 22. Bxb4 {[%clk 0:01:54]}  Bxb4 {[%clk 0:01:52]} 23. Rc1 {[%clk 0:01:53]}  Qd7 {[%clk 0:01:45]} 24. Rdd1 {[%clk 0:01:41]}  Rc7 {[%clk 0:01:45]} 25. Rc4 {[%clk 0:01:38]}  Rfc8 {[%clk 0:01:44]} 26. Rdc1 {[%clk 0:01:37]}  c5 {[%clk 0:01:41]} 27. dxc5 {[%clk 0:01:19]}  Rxc5 {[%clk 0:01:35]} 28. Rxc5 {[%clk 0:01:17]}  Rxc5 {[%clk 0:01:36]} 29. Rxc5 {[%clk 0:01:17]}  Bxc5 {[%clk 0:01:36]} 30. h4 {[%clk 0:01:13]}  g6 {[%clk 0:01:29]} 31. Bf3 {[%clk 0:01:04]}  h5 {[%clk 0:01:27]} 32. Kg2 {[%clk 0:01:01]}  Bb4 {[%clk 0:01:27]} 33. Be4 {[%clk 0:00:53]}  Kf8 {[%clk 0:01:19]} 34. Qc2 {[%clk 0:00:48]}  Qd6 {[%clk 0:01:14]} 35. Qc6 {[%clk 0:00:41]}  Qe5 {[%clk 0:01:13]} 36. Qc2 {[%clk 0:00:23]}  Kg7 {[%clk 0:01:13]} 37. Bf3 {[%clk 0:00:23]}  Qa1 {[%clk 0:01:12]} 38. Be4 {[%clk 0:00:21]}  Be7 {[%clk 0:01:09]} 39. Bf3 {[%clk 0:00:20]}  Bf6 {[%clk 0:01:10]} 40. Be4 {[%clk 0:00:20]}  Bc3 {[%clk 0:01:09]} 41. Bf3 {[%clk 0:00:20]}  Qa3 {[%clk 0:01:07]} 42. Be4 {[%clk 0:00:20]}  Qb4 {[%clk 0:01:06]} 43. Bf3 {[%clk 0:00:20]}  f5 {[%clk 0:01:06]} 44. Qd1 {[%clk 0:00:19]}  Qe7 {[%clk 0:00:59]} 45. Bc6 {[%clk 0:00:19]}  Bf6 {[%clk 0:00:57]} 46. Qd7 {[%clk 0:00:19]}  Kf7 {[%clk 0:00:53]} 47. Qxe7+ {[%clk 0:00:18]}  Kxe7 {[%clk 0:00:54]} 48. Kf3 {[%clk 0:00:14]}  Bc3 {[%clk 0:00:54]} 49. Bb5 {[%clk 0:00:14]}  Kf6 {[%clk 0:00:54]} 50. e4 {[%clk 0:00:14]}  Bd4 {[%clk 0:00:52]} 51. exf5 {[%clk 0:00:13]}  exf5 {[%clk 0:00:52]} 52. Kg2 {[%clk 0:00:13]}  Ke5 {[%clk 0:00:51]} 53. Bc6 {[%clk 0:00:12]}  Bc5 {[%clk 0:00:46]} 54. Kf3 {[%clk 0:00:12]}  Bb6 {[%clk 0:00:46]} 55. Bb5 {[%clk 0:00:12]}  Kf6 {[%clk 0:00:44]} 56. Bc6 {[%clk 0:00:12]}  Bd8 {[%clk 0:00:41]} 57. Bb5 {[%clk 0:00:12]}  g5 {[%clk 0:00:41]} 58. hxg5+ {[%clk 0:00:12]}  Kxg5 {[%clk 0:00:41]} 59. Be8 {[%clk 0:00:12]}  Bc7 {[%clk 0:00:41]} 60. Kg2 {[%clk 0:00:12]}  f4 {[%clk 0:00:40]} 61. gxf4+ {[%clk 0:00:11]}  Bxf4 {[%clk 0:00:40]} 62. Bb5 {[%clk 0:00:11]}  Be5 {[%clk 0:00:40]} 63. Bc6 {[%clk 0:00:11]}  h4 {[%clk 0:00:40]} 64. Bd7 {[%clk 0:00:11]}  Bd6 {[%clk 0:00:40]} 65. Kh3 {[%clk 0:00:10]}  Bf4 {[%clk 0:00:40]} 66. Bc6 {[%clk 0:00:09]}  Be5 {[%clk 0:00:40]} 67. f3 {[%clk 0:00:08]}  Bf4 {[%clk 0:00:40]} 68. Kg2 {[%clk 0:00:08]}  Bg3 {[%clk 0:00:38]} 69. Kh3 {[%clk 0:00:08]}  Kf4 {[%clk 0:00:38]} 70. Kg2 {[%clk 0:00:08]}  Ke3 {[%clk 0:00:38]} 71. Kh3 {[%clk 0:00:08]}  Kf2 {[%clk 0:00:38]} 72. Bd5 {[%clk 0:00:08]}  Ke3 {[%clk 0:00:36]} 73. Be4 {[%clk 0:00:08]}  Kd4 {[%clk 0:00:35]} 74. Bc6 {[%clk 0:00:08]}  Kc5 {[%clk 0:00:34]} 75. Bb5 {[%clk 0:00:07]}  Kd4 {[%clk 0:00:32]} 76. Bc6 {[%clk 0:00:07]}  Ke3 {[%clk 0:00:32]} 77. Kg2 {[%clk 0:00:08]}  Bd6 {[%clk 0:00:29]} 78. Bb5 {[%clk 0:00:07]}  Be7 {[%clk 0:00:30]} 79. Bc6 {[%clk 0:00:07]}  Kf4 {[%clk 0:00:29]} 80. Bb5 {[%clk 0:00:07]}  h3+ {[%clk 0:00:29]} 81. Kxh3 {[%clk 0:00:07]}  Kxf3 {[%clk 0:00:30]} 82. Kh2 {[%clk 0:00:07]}  Kf2 {[%clk 0:00:30]} 83. Kh3 {[%clk 0:00:07]} 1/2-1/2


[Site "https://www.chess.com"]

[Event "Titled Tuesday Blitz March 01 Late 2022"]
[White "Kaplan, Ebru"]
[Black "Bilych, Olexiy"]
[WhiteFideId "6315194"]
[BlackFideId "14156504"]
[WhiteElo "1941"]
[BlackElo "2195"]
[Result "0-1"]
[Round "03"]
[TimeControl "180+1"]
[Date "2022.03.02"]
[WhiteClock "0:00:01"]
[BlackClock "0:00:43"]

1. e4 {[%clk 0:03:00]}  e5 {[%clk 0:02:59]} 2. Nf3 {[%clk 0:02:58]}  Nc6 {[%clk 0:02:59]} 3. Nc3 {[%clk 0:02:57]}  Nf6 {[%clk 0:02:59]} 4. Bb5 {[%clk 0:02:57]}  Nd4 {[%clk 0:02:55]} 5. Bc4 {[%clk 0:02:57]}  Bc5 {[%clk 0:02:56]} 6. d3 {[%clk 0:02:55]}  Nxf3+ {[%clk 0:02:47]} 7. Qxf3 {[%clk 0:02:54]}  O-O {[%clk 0:02:47]} 8. Bg5 {[%clk 0:02:41]}  Be7 {[%clk 0:02:47]} 9. O-O {[%clk 0:02:36]}  d6 {[%clk 0:02:47]} 10. Rad1 {[%clk 0:02:32]}  Be6 {[%clk 0:02:46]} 11. Bb3 {[%clk 0:02:28]}  h6 {[%clk 0:02:36]} 12. Bxf6 {[%clk 0:02:21]}  Bxf6 {[%clk 0:02:37]} 13. Nd5 {[%clk 0:02:19]}  Bg5 {[%clk 0:02:29]} 14. g3 {[%clk 0:02:17]}  Qd7 {[%clk 0:02:20]} 15. h4 {[%clk 0:02:02]}  Bg4 {[%clk 0:01:56]} 16. Qg2 {[%clk 0:01:40]}  Bd8 {[%clk 0:01:55]} 17. Rde1 {[%clk 0:00:51]}  Bh3 {[%clk 0:01:55]} 18. Qf3 {[%clk 0:00:49]}  Bxf1 {[%clk 0:01:55]} 19. Rxf1 {[%clk 0:00:49]}  Kh8 {[%clk 0:01:52]} 20. Ne3 {[%clk 0:00:46]}  g6 {[%clk 0:01:50]} 21. h5 {[%clk 0:00:40]}  Kg7 {[%clk 0:01:48]} 22. Kg2 {[%clk 0:00:27]}  Bg5 {[%clk 0:01:46]} 23. Rh1 {[%clk 0:00:16]}  c6 {[%clk 0:01:15]} 24. Qe2 {[%clk 0:00:10]}  Qe7 {[%clk 0:01:02]} 25. f3 {[%clk 0:00:09]}  Bxe3 {[%clk 0:01:01]} 26. Qxe3 {[%clk 0:00:09]}  Qg5 {[%clk 0:01:01]} 27. Qe2 {[%clk 0:00:06]}  gxh5 {[%clk 0:00:57]} 28. Rh4 {[%clk 0:00:05]}  f5 {[%clk 0:00:55]} 29. Qf1 {[%clk 0:00:03]}  f4 {[%clk 0:00:49]} 30. Rh3 {[%clk 0:00:01]}  h4 {[%clk 0:00:43]} 0-1


[Site "https://www.chess.com"]

[Event "Titled Tuesday Blitz March 01 Late 2022"]
[White "Khabinets, Ivan"]
[Black "Jobava, Baadur"]
[WhiteFideId "14115980"]
[BlackFideId "13601520"]
[WhiteElo "2114"]
[BlackElo "2617"]
[Result "0-1"]
[Round "03"]
[TimeControl "180+1"]
[Date "2022.03.02"]
[WhiteClock "0:00:18"]
[BlackClock "0:01:09"]

1. Nf3 {[%clk 0:03:00]}  d5 {[%clk 0:02:59]} 2. c4 {[%clk 0:02:59]}  c6 {[%clk 0:02:56]} 3. g3 {[%clk 0:02:58]}  Nf6 {[%clk 0:02:55]} 4. d4 {[%clk 0:02:59]}  Bf5 {[%clk 0:02:54]} 5. Nc3 {[%clk 0:02:59]}  e6 {[%clk 0:02:53]} 6. Nh4 {[%clk 0:02:59]}  Be4 {[%clk 0:02:52]} 7. f3 {[%clk 0:02:59]}  Bg6 {[%clk 0:02:46]} 8. Qb3 {[%clk 0:03:00]}  Qc8 {[%clk 0:02:41]} 9. Nxg6 {[%clk 0:02:57]}  hxg6 {[%clk 0:02:41]} 10. e4 {[%clk 0:02:56]}  dxe4 {[%clk 0:02:38]} 11. fxe4 {[%clk 0:02:57]}  e5 {[%clk 0:02:39]} 12. d5 {[%clk 0:02:43]}  Na6 {[%clk 0:02:35]} 13. Be3 {[%clk 0:02:28]}  Bc5 {[%clk 0:02:34]} 14. Bxc5 {[%clk 0:02:21]}  Nxc5 {[%clk 0:02:35]} 15. Qc2 {[%clk 0:02:21]}  a5 {[%clk 0:02:28]} 16. O-O-O {[%clk 0:02:20]}  Qc7 {[%clk 0:02:18]} 17. Bg2 {[%clk 0:02:16]}  O-O-O {[%clk 0:02:16]} 18. Qf2 {[%clk 0:02:15]}  Qe7 {[%clk 0:02:09]} 19. h3 {[%clk 0:01:59]}  Kb8 {[%clk 0:02:08]} 20. Kc2 {[%clk 0:01:55]}  Nfd7 {[%clk 0:01:54]} 21. Rhf1 {[%clk 0:01:47]}  f6 {[%clk 0:01:54]} 22. b3 {[%clk 0:01:47]}  g5 {[%clk 0:01:54]} 23. a3 {[%clk 0:01:38]}  Na6 {[%clk 0:01:53]} 24. Kb2 {[%clk 0:01:37]}  Ndc5 {[%clk 0:01:52]} 25. Qe3 {[%clk 0:01:05]}  Qc7 {[%clk 0:01:51]} 26. Ka2 {[%clk 0:00:45]}  Qb6 {[%clk 0:01:43]} 27. Rb1 {[%clk 0:00:44]}  Kc7 {[%clk 0:01:22]} 28. Rfd1 {[%clk 0:00:41]}  Nb4+ {[%clk 0:01:10]} 29. axb4 {[%clk 0:00:34]}  axb4 {[%clk 0:01:11]} 30. Na4 {[%clk 0:00:22]}  Nxa4 {[%clk 0:01:11]} 31. Qxb6+ {[%clk 0:00:23]}  Nxb6 {[%clk 0:01:12]} 32. c5 {[%clk 0:00:24]}  Nd7 {[%clk 0:01:10]} 33. Rbc1 {[%clk 0:00:25]}  Ra8+ {[%clk 0:01:08]} 34. Kb2 {[%clk 0:00:25]}  Ra5 {[%clk 0:01:09]} 35. Rc4 {[%clk 0:00:23]}  Rha8 {[%clk 0:01:08]} 36. Rd2 {[%clk 0:00:16]}  Ra2+ {[%clk 0:01:05]} 37. Kc1 {[%clk 0:00:16]}  Ra1+ {[%clk 0:01:05]} 38. Kc2 {[%clk 0:00:15]}  R8a2+ {[%clk 0:01:06]} 39. Kd3 {[%clk 0:00:16]}  Rxd2+ {[%clk 0:01:06]} 40. Kxd2 {[%clk 0:00:17]}  Ra2+ {[%clk 0:01:07]} 41. Rc2 {[%clk 0:00:17]}  Rxc2+ {[%clk 0:01:08]} 42. Kxc2 {[%clk 0:00:18]}  Nxc5 {[%clk 0:01:09]} 0-1


[Site "https://www.chess.com"]

[Event "Titled Tuesday Blitz March 01 Late 2022"]
[White "Kopczynski, Michal"]
[Black "Zhou, Qiyu"]
[WhiteFideId "1124200"]
[BlackFideId "505161"]
[WhiteElo "2235"]
[BlackElo "1925"]
[Result "1-0"]
[Round "03"]
[TimeControl "180+1"]
[Date "2022.03.02"]
[WhiteClock "0:00:04"]
[BlackClock "0:00:03"]

1. e4 {[%clk 0:03:00]}  c5 {[%clk 0:02:58]} 2. d4 {[%clk 0:03:00]}  cxd4 {[%clk 0:02:58]} 3. c3 {[%clk 0:03:01]}  d3 {[%clk 0:02:59]} 4. Bxd3 {[%clk 0:03:01]}  d6 {[%clk 0:02:59]} 5. f4 {[%clk 0:03:01]}  Nc6 {[%clk 0:03:00]} 6. Nf3 {[%clk 0:03:02]}  g6 {[%clk 0:03:01]} 7. O-O {[%clk 0:03:03]}  Bg7 {[%clk 0:03:01]} 8. Kh1 {[%clk 0:03:03]}  e6 {[%clk 0:03:02]} 9. Qe1 {[%clk 0:03:04]}  Nge7 {[%clk 0:03:00]} 10. Be3 {[%clk 0:03:04]}  O-O {[%clk 0:03:00]} 11. Nbd2 {[%clk 0:03:04]}  Bd7 {[%clk 0:02:43]} 12. Rd1 {[%clk 0:03:04]}  Rc8 {[%clk 0:02:42]} 13. Qh4 {[%clk 0:03:02]}  f6 {[%clk 0:02:36]} 14. f5 {[%clk 0:02:40]}  exf5 {[%clk 0:02:19]} 15. Bh6 {[%clk 0:02:39]}  Ne5 {[%clk 0:02:13]} 16. Bc2 {[%clk 0:02:36]}  Be6 {[%clk 0:01:57]} 17. Bxg7 {[%clk 0:02:35]}  Kxg7 {[%clk 0:01:56]} 18. Nd4 {[%clk 0:02:35]}  Qd7 {[%clk 0:01:35]} 19. exf5 {[%clk 0:02:29]}  Bxf5 {[%clk 0:01:33]} 20. Nxf5+ {[%clk 0:02:29]}  Nxf5 {[%clk 0:01:34]} 21. Bxf5 {[%clk 0:02:29]}  gxf5 {[%clk 0:01:35]} 22. Nf3 {[%clk 0:02:22]}  Ng6 {[%clk 0:01:34]} 23. Qh3 {[%clk 0:02:14]}  Rc5 {[%clk 0:01:32]} 24. Nd4 {[%clk 0:02:14]}  Re8 {[%clk 0:01:18]} 25. Rxf5 {[%clk 0:02:09]}  Rxf5 {[%clk 0:01:15]} 26. Nxf5+ {[%clk 0:02:02]}  Kh8 {[%clk 0:01:15]} 27. Qh5 {[%clk 0:01:26]}  Re5 {[%clk 0:01:03]} 28. Rf1 {[%clk 0:01:20]}  Nf4 {[%clk 0:00:39]} 29. Qh6 {[%clk 0:01:09]}  Ng6 {[%clk 0:00:31]} 30. Nd4 {[%clk 0:01:00]}  Qe7 {[%clk 0:00:24]} 31. Qd2 {[%clk 0:00:52]}  d5 {[%clk 0:00:16]} 32. Qf2 {[%clk 0:00:51]}  Kg8 {[%clk 0:00:03]} 33. h3 {[%clk 0:00:51]}  b6 {[%clk 0:00:01]} 34. Qxf6 {[%clk 0:00:50]}  Qxf6 {[%clk 0:00:01]} 35. Rxf6 {[%clk 0:00:50]}  Re1+ {[%clk 0:00:02]} 36. Kh2 {[%clk 0:00:50]}  Rb1 {[%clk 0:00:03]} 37. b4 {[%clk 0:00:42]}  Rb2 {[%clk 0:00:03]} 38. a3 {[%clk 0:00:37]}  Nh4 {[%clk 0:00:02]} 39. Kg3 {[%clk 0:00:32]}  Nxg2 {[%clk 0:00:02]} 40. Rd6 {[%clk 0:00:32]}  Ne3 {[%clk 0:00:02]} 41. Kf3 {[%clk 0:00:29]}  Nc4 {[%clk 0:00:01]} 42. Rxd5 {[%clk 0:00:29]}  Nd2+ {[%clk 0:00:01]} 43. Kf4 {[%clk 0:00:28]}  Nc4 {[%clk 0:00:01]} 44. a4 {[%clk 0:00:27]}  Rh2 {[%clk 0:00:01]} 45. Kg3 {[%clk 0:00:26]}  Rd2 {[%clk 0:00:01]} 46. Rd8+ {[%clk 0:00:25]}  Kf7 {[%clk 0:00:01]} 47. Rd7+ {[%clk 0:00:24]}  Kf6 {[%clk 0:00:02]} 48. Rxh7 {[%clk 0:00:20]}  Rd3+ {[%clk 0:00:02]} 49. Kf4 {[%clk 0:00:20]}  Rxc3 {[%clk 0:00:03]} 50. Rxa7 {[%clk 0:00:19]}  Nd6 {[%clk 0:00:03]} 51. h4 {[%clk 0:00:17]}  Rc4 {[%clk 0:00:03]} 52. Ke3 {[%clk 0:00:16]}  Rxb4 {[%clk 0:00:03]} 53. h5 {[%clk 0:00:14]}  Nc4+ {[%clk 0:00:02]} 54. Kd3 {[%clk 0:00:13]}  Ne5+ {[%clk 0:00:03]} 55. Kc3 {[%clk 0:00:13]}  Rb1 {[%clk 0:00:03]} 56. h6 {[%clk 0:00:13]}  Rh1 {[%clk 0:00:03]} 57. h7 {[%clk 0:00:12]}  Rh3+ {[%clk 0:00:04]} 58. Kb4 {[%clk 0:00:11]}  Rh4 {[%clk 0:00:04]} 59. Kc3 {[%clk 0:00:09]}  Rh3+ {[%clk 0:00:04]} 60. Kb4 {[%clk 0:00:08]}  Rh4 {[%clk 0:00:05]} 61. Kb5 {[%clk 0:00:09]}  Nf7 {[%clk 0:00:04]} 62. Nf5 {[%clk 0:00:06]}  Rh5 {[%clk 0:00:01]} 63. Kxb6 {[%clk 0:00:05]}  Rxf5 {[%clk 0:00:01]} 64. Rxf7+ {[%clk 0:00:04]}  Kxf7 {[%clk 0:00:02]} 65. h8=Q {[%clk 0:00:04]}  Rf6+ {[%clk 0:00:02]} 66. Qxf6+ {[%clk 0:00:03]}  Kxf6 {[%clk 0:00:03]} 67. a5 {[%clk 0:00:04]} 1-0


[Site "https://www.chess.com"]

[Event "Titled Tuesday Blitz March 01 Late 2022"]
[White "Kostiukov, Alexandr"]
[Black "Carre, Sylvain"]
[WhiteFideId "14108100"]
[BlackFideId "642118"]
[WhiteElo "2202"]
[BlackElo "2105"]
[Result "0-1"]
[Round "03"]
[TimeControl "180+1"]
[Date "2022.03.02"]
[WhiteClock "0:00:04"]
[BlackClock "0:00:18"]

1. g3 {[%clk 0:03:00]}  d5 {[%clk 0:02:59]} 2. Bg2 {[%clk 0:02:59]}  c6 {[%clk 0:02:59]} 3. d3 {[%clk 0:02:58]}  Nf6 {[%clk 0:02:59]} 4. e4 {[%clk 0:02:58]}  dxe4 {[%clk 0:02:58]} 5. dxe4 {[%clk 0:02:59]}  Qxd1+ {[%clk 0:02:57]} 6. Kxd1 {[%clk 0:02:58]}  Ng4 {[%clk 0:02:36]} 7. Nh3 {[%clk 0:02:57]}  f5 {[%clk 0:02:34]} 8. f3 {[%clk 0:02:52]}  Nf6 {[%clk 0:02:32]} 9. e5 {[%clk 0:02:52]}  Nd5 {[%clk 0:02:31]} 10. c4 {[%clk 0:02:49]}  Nb6 {[%clk 0:02:17]} 11. b3 {[%clk 0:02:46]}  e6 {[%clk 0:02:11]} 12. Be3 {[%clk 0:02:36]}  N8d7 {[%clk 0:02:09]} 13. f4 {[%clk 0:02:35]}  h6 {[%clk 0:01:52]} 14. Nc3 {[%clk 0:02:26]}  Bb4 {[%clk 0:01:45]} 15. Kc2 {[%clk 0:02:25]}  Kf7 {[%clk 0:01:39]} 16. Nf2 {[%clk 0:02:19]}  Rd8 {[%clk 0:01:37]} 17. Nd3 {[%clk 0:02:18]}  Be7 {[%clk 0:01:27]} 18. Rhd1 {[%clk 0:02:17]}  Nf8 {[%clk 0:01:23]} 19. a4 {[%clk 0:02:05]}  Nbd7 {[%clk 0:01:14]} 20. a5 {[%clk 0:02:00]}  a6 {[%clk 0:01:03]} 21. Na4 {[%clk 0:01:58]}  Ng6 {[%clk 0:00:58]} 22. Nb6 {[%clk 0:01:35]}  Nxb6 {[%clk 0:00:57]} 23. Bxb6 {[%clk 0:01:35]}  Rd7 {[%clk 0:00:55]} 24. Nc5 {[%clk 0:01:07]}  Rxd1 {[%clk 0:00:52]} 25. Rxd1 {[%clk 0:01:08]}  Nf8 {[%clk 0:00:53]} 26. Kc3 {[%clk 0:00:55]}  Ke8 {[%clk 0:00:50]} 27. b4 {[%clk 0:00:48]}  g6 {[%clk 0:00:49]} 28. h3 {[%clk 0:00:42]}  Bd7 {[%clk 0:00:45]} 29. Nxb7 {[%clk 0:00:40]}  Rb8 {[%clk 0:00:39]} 30. Nd6+ {[%clk 0:00:36]}  Bxd6 {[%clk 0:00:39]} 31. Rxd6 {[%clk 0:00:34]}  Rc8 {[%clk 0:00:38]} 32. c5 {[%clk 0:00:23]}  g5 {[%clk 0:00:36]} 33. Bf1 {[%clk 0:00:22]}  Ra8 {[%clk 0:00:34]} 34. Bc4 {[%clk 0:00:19]}  Ke7 {[%clk 0:00:32]} 35. Rd2 {[%clk 0:00:18]}  Ng6 {[%clk 0:00:32]} 36. Bc7 {[%clk 0:00:18]}  gxf4 {[%clk 0:00:30]} 37. Bd6+ {[%clk 0:00:19]}  Ke8 {[%clk 0:00:29]} 38. gxf4 {[%clk 0:00:19]}  Nxf4 {[%clk 0:00:29]} 39. Rf2 {[%clk 0:00:17]}  Nxh3 {[%clk 0:00:26]} 40. Rh2 {[%clk 0:00:17]}  Ng5 {[%clk 0:00:27]} 41. Rxh6 {[%clk 0:00:15]}  Kf7 {[%clk 0:00:24]} 42. Rf6+ {[%clk 0:00:05]}  Kg7 {[%clk 0:00:21]} 43. Bd3 {[%clk 0:00:06]}  Rh8 {[%clk 0:00:18]} 44. Bxa6 {[%clk 0:00:05]}  Ne4+ {[%clk 0:00:17]} 45. Kc4 {[%clk 0:00:03]}  Nxf6 {[%clk 0:00:17]} 46. exf6+ {[%clk 0:00:04]}  Kxf6 {[%clk 0:00:17]} 47. Bb7 {[%clk 0:00:05]}  Rh4+ {[%clk 0:00:17]} 48. Kb3 {[%clk 0:00:04]}  Rh3+ {[%clk 0:00:18]} 49. Ka4 {[%clk 0:00:05]}  Rh1 {[%clk 0:00:18]} 50. a6 {[%clk 0:00:04]}  Ra1+ {[%clk 0:00:18]} 51. Kb3 {[%clk 0:00:05]}  e5 {[%clk 0:00:19]} 52. Bc7 {[%clk 0:00:04]}  Be6+ {[%clk 0:00:17]} 53. Kb2 {[%clk 0:00:04]}  f4 {[%clk 0:00:18]} 0-1


[Site "https://www.chess.com"]